Cogmind - Beta 13 *** ADVENTURER MODE // 2024.04.09 @ 08:43:20 Player: Shippujinlai Result: Destroyed by G-47 Trooper with Particle Gun Performance ------------- Evolutions (2) 1000 Regions Visited (3) 600 Robots Destroyed (106) 530 Value Destroyed (2642) 2642 Prototype IDs (3) 60 Alien Tech Used (0) 0 Bonus (68) 68 TOTAL SCORE: 4900 Bonus ------- High Alert Combat Kills 68 Cogmind --------- Core Integrity 0/550 Matter 202/300 Energy 99/100 System Corruption 0% Temperature Cool (9) Movement Core (100) Ox1 Location -8/Materials Parts ------- > --- POWER (2) -------- (None) > --- PROPULSION (2) --- (None) > --- UTILITY (4) ------ Signal Interpreter > --- WEAPON (3) ------- Great Maul > --- INVENTORY (5) ---- Light Treads Light Treads Visual Processing Unit Improved Grenade Launcher Improved Grenade Launcher Peak State ------------ > --- POWER ------------ Light Nuclear Core Light Nuclear Core > --- PROPULSION ------- Light Treads Improved Treads > --- UTILITY ---------- Improved Heat Sink Large Storage Unit Signal Interpreter Light Armor Plating > --- WEAPON ----------- Improved Assault Rifle Improved Assault Rifle Minigun > --- INVENTORY -------- Light Nuclear Core Light Treads Light Treads Light Treads Advanced Weight Redist. System Visual Processing Unit Sensor Array Signal Interpreter Signal Interpreter Terrain Scanner Assault Rifle Improved Grenade Launcher Improved Grenade Launcher Datajack Great Maul [Rating: 26] Favorites ----------- Power Light Nuclear Core Engine Light Ion Engine Power Core Light Nuclear Core Propulsion Light Treads Treads Light Treads Hover Unit Aerolev Unit Utility Large Storage Unit Device Improved Heat Sink Storage Large Storage Unit Processor Signal Interpreter Hackware Hacking Suite Protection Light Armor Plating Weapon Improved Assault Rifle Energy Gun Improved EM Shotgun Ballistic Gun Improved Assault Rifle Impact Weapon Great Maul Build | -11 -10 -9 -8 ------- Run | Yrd Mat Mat Mat Slots Evolved 4 | . . 2 2 Power 1 | . . . 1 Propulsion . | . . . . Utility 2 | . . 1 1 Weapon 1 | . . 1 . Parts Attached 49 | 6 8 19 16 Power 8 | 1 2 2 3 Engine 3 | 1 1 1 . Core 5 | . 1 1 3 Reactor . | . . . . Propulsion 10 | 2 1 3 4 Treads 9 | 2 1 3 3 Leg . | . . . . Wheel . | . . . . Hover 1 | . . . 1 Flight . | . . . . Utility 10 | 1 3 2 4 Device 1 | . . . 1 Storage 2 | 1 1 . . Processor 2 | . 2 . . Hackware 1 | . . . 1 Protection 4 | . . 2 2 Artifact . | . . . . Weapon 21 | 2 2 12 5 Energy Gun 2 | . . 1 1 Energy Cannon . | . . . . Ballistic Gun 18 | 2 2 11 3 Ballistic Cannon . | . . . . Launcher . | . . . . Special Weapon . | . . . . Impact Weapon 1 | . . . 1 Slashing Weapon . | . . . . Piercing Weapon . | . . . . Special Melee Weapon . | . . . . Unidentified Prototypes 3 | . . 2 1 Parts Lost 18 | . . 4 14 Power 4 | . . 1 3 Propulsion 3 | . . . 3 Utility 5 | . . 1 4 Weapon 6 | . . 2 4 Highest Loss Streak 11 | . . 1 11 To Critical Strikes . | . . . . Average Slot Usage (%) 97 | . 99 98 89 Engine 3 | . 7 . 3 Core 8 | . 6 10 9 Treads 23 | . 28 22 16 Storage 11 | . 14 11 8 Processor 11 | . 13 11 9 Protection 6 | . . 10 8 Ballistic Gun 30 | . 28 32 25 Naked Turns . | . . . . Heaviest Build 45 | 11 31 42 45 Greatest Support 43 | 40 40 40 43 Greatest Overweight (x) 7 | 1 . 1 7 Average Overweight (x) . | . . . . Largest Inventory Capacity 15 | 8 15 15 15 Average Capacity 14 | 6 13 15 14 Most Carried 15 | 1 10 15 15 Average Carried 11 | . 7 14 14 Final Capacity 15 | 8 15 15 5 Final Carried 14 | 1 10 14 5 Class Distribution -------------------- 45% | Scavenger-Tank 37% | Mutant 8% | Tank 4% | Gunner Dominant Class ---------------- Mutant | -10/Materials Scavenger-Tank | -9/Materials Scavenger-Tank | -8/Materials Resources | -11 -10 -9 -8 ----------- Run | Yrd Mat Mat Mat Matter Collected 2153 | 237 359 1126 431 Remotely . | . . . . Salvage Created 3935 | . 532 2151 1252 Parts 233 | . 37 137 59 Haulers Intercepted 10 | . 2 6 2 Recyclers Shooed 1 | . . 1 . Parts Field Recycled . | . . . . Retrieved Matter . | . . . . Parts Self-Destructed . | . . . . Prevented . | . . . . Kills | -11 -10 -9 -8 ------- Run | Yrd Mat Mat Mat Combat Hostiles Destroyed 68 | . 8 38 22 Guns 65 | . 8 38 19 Classes Destroyed 13 | . 5 6 2 Worker 7 | . 1 4 2 Builder 3 | . . 2 1 Tunneler 1 | . . 1 . Hauler 10 | . 2 6 2 Recycler 3 | . . 2 1 Mechanic 1 | . 1 . . Operator 5 | . . 5 . Watcher 8 | . 3 5 . Swarmer 15 | . . 11 4 Grunt 40 | . 8 18 14 Duelist 1 | . . . 1 Sentry 11 | . . 9 2 Hunter 1 | . . . 1 Best Kill Streak 9 | . 3 7 9 Combat Bots Only 7 | . 3 7 7 Max Kills in Single Turn 2 | . 1 2 2 Gunslinging 1 | . . 1 1 Exploded . | . . . . Melee . | . . . . Uniques/NPCs Destroyed . | . . . . Combat | -11 -10 -9 -8 -------- Run | Yrd Mat Mat Mat Hostile Shots Fired 467 | . 86 195 186 Missed 121 | . 31 62 28 Damage Taken 3671 | . 524 1272 1875 Core 867 | . 119 191 557 Absorbed by Shields . | . . . . Ignored by Resistances 1083 | . 160 378 545 Regen/Repaired (Parts) 57 | . . . 57 Core Remaining (%) 68 | 100 52 52 . Volleys Fired 196 | . 40 109 47 Largest 3 | . 2 3 3 Hottest 71 | . 46 69 71 Shots Fired 514 | . 80 312 122 Gun 514 | . 80 312 122 Cannon . | . . . . Launcher . | . . . . Special . | . . . . Kinetic 514 | . 80 312 122 Thermal . | . . . . Explosive . | . . . . Electromagnetic . | . . . . Robot Hit Streak 48 | . 23 35 48 Robot Miss Streak 2 | . 2 2 2 Penetration Max . | . . . . Secondary Targets 16 | . 3 7 6 Max Gunslinging Chain 1 | . 1 1 1 Shots Hit Robots 388 | . 63 223 102 Core Hits 175 | . 32 97 46 Critical Kills . | . . . . Critical Parts Destroyed 6 | . . 4 2 Critical Strikes 7 | . . 5 2 Destroy 6 | . . 5 1 Smash 1 | . . . 1 Melee Attacks 7 | . . . 7 Impact 7 | . . . 7 Slashing . | . . . . Piercing . | . . . . Sneak Attacks 1 | . . . 1 Combat Hostiles . | . . . . Follow-up Attacks . | . . . . Damage Inflicted 6038 | . 942 3250 1846 Guns 5687 | . 942 3250 1495 Cannons . | . . . . Explosions . | . . . . Melee 351 | . . . 351 Ramming . | . . . . Kinetic 5687 | . 942 3250 1495 Thermal . | . . . . Explosive . | . . . . Electromagnetic . | . . . . Impact 351 | . . . 351 Slashing . | . . . . Piercing . | . . . . Highest Corruption 4 | . . 4 . Average Corruption 4 | . . 4 . Corruption Purged . | . . . . Corruption Blocked . | . . . . Effects 19 | . . 19 . Message Errors 4 | . . 4 . Matter Fused 6 | . . 6 . Heat Flow Errors 3 | . . 3 . Parts Rejected 1 | . . 1 . Data Loss (minor) 2 | . . 2 . Misfires 1 | . . 1 . Weapon Failures 2 | . . 2 . Overload Shots . | . . . . Overflow Damage 139 | . . . 139 Projectiles . | . . . . Explosions . | . . . . Melee 139 | . . . 139 Knockbacks 2 | . . . 2 Impact 2 | . . . 2 Kinetic . | . . . . Secondary . | . . . . Self-Inflicted Damage . | . . . . Shots . | . . . . Rammed . | . . . . Targets Rammed . | . . . . Kicked . | . . . . Crushed . | . . . . Highest Temperature 520 | . 33 253 520 Average Temperature 78 | . 8 40 212 Received Heat Transfer 2316 | . 417 585 1314 Effects 17 | . . . 17 Shutdowns 2 | . . . 2 Energy Bleed 3 | . . . 3 Interference 7 | . . . 7 Matter Decay 1 | . . . 1 Damage (minor) 1 | . . . 1 Damage (major) 3 | . . . 3 Siege Activations . | . . . . Robots Corrupted . | . . . . Combat Hostiles . | . . . . Parts Fried 3 | . . . 3 Impact Corruptions 6 | . . . 6 Robots Melted . | . . . . Combat Hostiles . | . . . . Parts Melted . | . . . . Heat Transferred . | . . . . Parts Sabotaged . | . . . . Parts Stolen . | . . . . Parts Stripped . | . . . . Power Chain Reactions . | . . . . Alert | -11 -10 -9 -8 ------- Run | Yrd Mat Mat Mat Peak Influence 525 | . 172 525 378 Initial 70 | . . . 70 Average 177 | . 47 276 156 Maximum Alert Level 2 | . . 2 1 Low Security (%) 55 | 100 100 19 70 Level 1 39 | . . 70 29 Level 2 5 | . . 10 . Level 3 . | . . . . Level 4 . | . . . . Level 5 . | . . . . High Security . | . . . . Max Security . | . . . . Squads Dispatched 18 | . 1 10 7 Investigation 10 | . 1 5 4 Extermination . | . . . . Reinforcement 6 | . . 5 1 Assault . | . . . . Garrison 2 | . . . 2 Intercept . | . . . . Searches Triggered . | . . . . Construction Impeded . | . . . . Haulers Reinforced . | . . . . Active Scanning Responses . | . . . . Cargo Convoy Interrupts . | . . . . Stealth | -11 -10 -9 -8 --------- Run | Yrd Mat Mat Mat Distress Signals 3 | . 1 1 1 Communications Jammed . | . . . . Distress Signals . | . . . . Times Spotted 94 | . 16 52 26 Peak Tracking Total 11 | . 4 6 11 Tactical Retreats 3 | . . 1 2 Traps | -11 -10 -9 -8 ------- Run | Yrd Mat Mat Mat Traps Triggered 4 | . . 3 1 Indirectly . | . . . . Trap Hack Attempts . | . . . . Triggered . | . . . . Disarmed . | . . . . Reprogrammed . | . . . . Reused . | . . . . Traps Extracted . | . . . . Installed . | . . . . Triggered . | . . . . Machines | -11 -10 -9 -8 ---------- Run | Yrd Mat Mat Mat Machines Disabled . | . . . . Max in Single Turn . | . . . . Garrison Access 1 | . . . 1 Machines Repaired . | . . . . Machines Dismantled . | . . . . Machines Sabotaged . | . . . . Overloaded Fab Kills . | . . . . Hacking | -11 -10 -9 -8 --------- Run | Yrd Mat Mat Mat Machines Accessed 16 | . 4 7 5 Terminals 14 | . 4 7 3 Fabricators . | . . . . Repair Stations 1 | . . . 1 Recycling Units . | . . . . Scanalyzers . | . . . . Garrison Access 1 | . . . 1 Total Hacks 36 | . 9 17 10 Successful 13 | . 5 4 4 Failed 23 | . 4 13 6 Catastrophic 6 | . 2 3 1 Database Lockouts . | . . . . Manual 32 | . 9 16 7 Terminals 33 | . 9 17 7 Fabricators . | . . . . Repair Stations 2 | . . . 2 Recycling Units . | . . . . Scanalyzers . | . . . . Garrison Access 1 | . . . 1 Terminal Hacks 10 | . 5 4 1 Part Schematic 3 | . 2 1 . Unreport Threat 4 | . 2 1 1 Recall Investigation 2 | . . 2 . Hauler Manifests 1 | . 1 . . Fabricator Hacks . | . . . . Repair Station Hacks 2 | . . . 2 Scan Component 1 | . . . 1 Repair 1 | . . . 1 Recycling Unit Hacks . | . . . . Scanalyzer . | . . . . Garrison Access Hacks 1 | . . . 1 Seal Access 1 | . . . 1 Unauthorized Hacks . | . . . . Terminals . | . . . . Fabricators . | . . . . Repair Stations . | . . . . Recycling Units . | . . . . Scanalyzers . | . . . . Garrison Access . | . . . . Data Cores Recovered . | . . . . Used . | . . . . Hacking Detections 12 | . 3 6 3 Full Trace Events 8 | . 1 4 3 Feedback Events . | . . . . Feedback Blocked . | . . . . Robot Schematics Acquired . | . . . . Robots Built . | . . . . Authchips . | . . . . Time . | . . . . Total Robot Build Rating . | . . . . Part Schematics Acquired 3 | . 2 1 . Parts Built . | . . . . Authchips . | . . . . Time . | . . . . Total Part Build Rating . | . . . . Parts Repaired 1 | . . . 1 Time 26 | . . . 26 Parts Recycled . | . . . . Recycled Matter . | . . . . Retrieved Matter . | . . . . Retrieved Components . | . . . . Parts Scanalyzed . | . . . . Part Schematics Acquired . | . . . . Parts Damaged . | . . . . Bothacking | -11 -10 -9 -8 ------------ Run | Yrd Mat Mat Mat Used RIF Installer . | . . . . Robots Hacked . | . . . . Non-combat . | . . . . Combat . | . . . . Robot Hacks Applied . | . . . . Relay Couplers Released . | . . . . Fabnet Peak Effective % . | . . . . Robots Rewired . | . . . . Allies Hacked . | . . . . Hacks Repelled . | . . . . Allies | -11 -10 -9 -8 -------- Run | Yrd Mat Mat Mat Total Allies . | . . . . Largest Group . | . . . . Highest-Rated Group . | . . . . Highest-Rated Ally . | . . . . Total Orders . | . . . . Ally Attacks . | . . . . Total Damage . | . . . . Kills . | . . . . Allies Corrupted . | . . . . Allies Melted . | . . . . Intel | -11 -10 -9 -8 ------- Run | Yrd Mat Mat Mat Robot Analysis Total . | . . . . Derelict Logs Recovered . | . . . . Drone Launches . | . . . . Drone Recoveries . | . . . . Exploration | -11 -10 -9 -8 ------------- Run | Yrd Mat Mat Mat Turns Passed 4153 | 69 1421 2101 562 Spaces Moved 2060 | 36 804 1008 212 Core 9 | 6 . . 3 Treads 2051 | 30 804 1008 209 Legs . | . . . . Wheels . | . . . . Hover . | . . . . Flight . | . . . . Fastest Speed 50 | 50 160 160 100 Average Speed 163 | 145 160 167 163 Slowest Speed 400 | 160 160 240 400 Overloaded Moves . | . . . . Propulsion Burnouts . | . . . . Robots Hopped . | . . . . Cave-ins Triggered . | . . . . Exploration Rate (%) 52 | 4 96 89 22 Regions Visited 3 Branch Regions . Pre-discovered Areas . | . . . . Known Exits Taken 2 | . 1 1 . Unknown Exits Taken 1 | 1 . . . Scrap Searched . | . . . . Spaces Dug . | . . . . Terrain Destroyed . | . . . . Melee . | . . . . Projectile . | . . . . AOE . | . . . . Terrain Rammed . | . . . . Walls Destroyed . | . . . . Machines Disabled . | . . . . Actions | -11 -10 -9 -8 --------- Run | Yrd Mat Mat Mat Total 2415 | 50 859 1181 325 Wait 71 | 8 . 28 35 Move 2057 | 35 803 1007 212 Hop . | . . . . Pick Up 13 | 1 5 6 1 Fast Attach 31 | 6 2 12 11 Attach 5 | . . 2 3 Detach . | . . . . Swap 13 | . 6 5 2 Drop 22 | . 3 12 7 Fire 196 | . 40 109 47 Melee 7 | . . . 7 Ram . | . . . . Kick . | . . . . Crush . | . . . . Escape Stasis . | . . . . Rewire . | . . . . Trap . | . . . . Miscellaneous . | . . . . Route ------- -11/Scrapyard -10/Materials (discovered 4 exits: *Mat x2 / [*Min x2]) -9/Materials (discovered 4 exits: *Mat x3 / *Min) -8/Materials (discovered 1 exit: [*Sto]) History --------- Turn | Location | Event 16 | -11/Scrapyard | Discovered new exit (range 15) 70 | -11/Scrapyard | Entered Materials 149 | -10/Materials | Discovered new exit (range 15) 337 | -10/Materials | Build established: Mutant 350 | -10/Materials | Discovered new exit (range 15) 400 | -10/Materials | Discovered new exit (range 13) 693 | -10/Materials | Discovered new exit (range 12) 1313 | -10/Materials | Identified exit to Materials 1491 | -10/Materials | Entered another Materials area 1491 | -9/Materials | Evolved 2 slots: Utility x1, Weapon x1 1856 | -9/Materials | Destroyed 7 combat bots 1935 | -9/Materials | Discovered new exit (range 16) 1957 | -9/Materials | Identified exit to Materials 2277 | -9/Materials | Build established: Scavenger-Tank 2649 | -9/Materials | Discovered new exit (range 8) 2679 | -9/Materials | Identified exit to Mines 3103 | -9/Materials | Discovered exit to Materials (range 15) 3519 | -9/Materials | Discovered exit to Materials (range 16) 3592 | -9/Materials | Entered another Materials area 3592 | -8/Materials | Evolved 2 slots: Power x1, Utility x1 3785 | -8/Materials | Repaired Lgt. Armor Plating 3848 | -8/Materials | Garrison activated, responded to threat 4030 | -8/Materials | Discovered new exit (range 13) 4129 | -8/Materials | Core integrity fell below 50% 4144 | -8/Materials | Core integrity fell below 20% 4154 | -8/Materials | Destroyed by G-47 Trooper with Particle Gun Last Messages --------------- Lgt. Nuclear Core fried. Particle Gun fried. R-06 Scavenger collects Corrupted Aluminum Leg. R-06 Scavenger collects Lgt. Nuclear Core. R-06 Scavenger collects Aluminum Leg. Lrg. Storage Unit destroyed. Destroyed Aluminum Leg. G-47 Trooper system corrupted by crushing effect. G-47 Trooper system terminally corrupted. R-06 Scavenger collects Signal Interpreter. Sneak attack on R-06 Scavenger. R-06 Scavenger suffers critical hit (Smash). Destroyed Com. Wheel. Destroyed Lgt. Ion Engine. Destroyed Com. Wheel. R-06 Scavenger system corrupted by crushing effect. Sml. Storage Unit fried. R-06 Scavenger destroyed. Map ----- +----------------------------------------------------+ | | | | | | | | | | | | | | | ????????????????????????????????????? | | ????????????????????????????????????? | | ???????????????????????????###??????? | | ?????????????#######????? ??????? | | ?????????????# ##### ?????? | | ??????######## "" ?????? | | ??????# T < ?????? | | ??????# ###### [ ?????? | | ??????# #????# ##### ????????? | | ??????# #????### ###????????????????? | | ??????# #??????# #??????????????????? | | ??????# #??????# #??????????????????? | | ??????# #?######+#??????????????????? | | ??????# #?#%!=!%=#??????????????????? | | ??????#!#?#[%"""=#??????????????????? | | ??????#!#?#g!""" #??????????????????? | | ??????#[#?#!m"""!#??????????????????? | | ??????#%#?#!g!*!=#??????????????????? | | ??????#[#?#/@%!=*#??????????????????? | | ??????#!######+###??????????????????? | | ??????#!* #??????????????????? | | ??????# ###????????????????? | | ??????+ """ +????????????????? | | ??????# "T" ###????????????????? | | ??????## #??????????????????? | | ???????# ####?????????????????? | | ??????## "" #?????????????????? | | ??????#" G"#?????????????????? | | ??????#T ! "" #?????????????????? | | ??????#" =%* ####?????????????????? | | ????#### """ ""#??????????????????? | | ????# """ Y"#??????????????????? | | ????# """ ""#??????????????????? | | ????# ###??????????????????? | | ????# #????????????????????? | | ????# """ #????????????????????? | | ????# """ #????????????????????? | | #####+## """ #????????????????????? | | # # #?????#??????????????? | | # """ # #???? #??????????????? | | # """ # """% #??? #??????????????? | | # """ =# """ #?? % +??????????????? | | # # """ ## * #??????????????? | +----------------------------------------------------+ Best States ------------- Heat Dissipation 45 Energy Generation 23 Energy Capacity 220 Matter Stores 300 Matter Capacity 300 Sight Range 16 Terrain Scan Density 10 Armor Coverage 300 Resistance: KI 20 Resistance: TH 20 Resistance: EX 20 Resistance: EM 20 Resistance: I 20 Resistance: S 20 Resistance: P 20 Evasion (%) 40 Targeting Accuracy 5 Recoil Reduction 2 Offensive Hacking 20 Item Schematics ----------------- Lgt. Treads | -10/Materials | Hacked Assault Rifle | -10/Materials | Hacked Signal Interpreter | -9/Materials | Hacked Robot Schematics ------------------ None Fabricated ------------ Nothing Alien Tech Used ----------------- None Achievements -------------- GoHome() Party Time Challenges ------------ None Game ------ Seed SeismicSpectralChronowheel Manual? 0 Play Time 00:32:35 Cumulative 12.8 hours Start 2024.04.09 @ 08:13:31 End 2024.04.09 @ 08:43:20 Sessions 1 Manual Loads 0 Difficulty Adventurer Special Mode None Game No. 7 Rogue 0 Adventurer 7 Explorer 0 Win Type - Total 0 Types 0/0/0/0/0/0/0/0/0 Lore% 3 Gallery% 21 Achievement% 18 Wizard Run 0 Options --------- Layout 1 ASCII 0 Keyboard 0 Movement Mouse Keybinds 0 Fullscreen 0 Font 28/SmallcapsGlow Map View 50x40 Zoom Use 0% Tactical HUD 0 Map Filters NONE Filters NONE Steam 1 RUN: 92264426-a6b0-4848-87fa-6daf7af26d23